[Event "FIDE World Rapid-ch Open 2018"]
[White "Gabrielian, Artur"]
[Black "Bocharov, Ivan"]
[Site "St. Petersburg"]
[Round "3.45"]
[Annotator "ChessBase"]
[Result "1/2-1/2"]
[Date "2018.12.26"]
[WhiteElo "2499"]
[BlackElo "2563"]
[PlyCount "103"]
[TimeControl "900+10"]

1. e4 {[%emt 0:0:0]} e5 {[%emt 0:0:0]} 2. Nf3 {[%emt 0:0:0]} Nc6 {[%emt 0:0:0]
} 3. Bc4 {[%emt 0:0:0]} Bc5 {[%emt 0:0:0]} 4. d3 {[%emt 0:0:0]} Nf6 {[%emt 0:0:0]} 5. Bg5 {[%emt 0:0:0]} h6 {[%emt 0:0:12]} 6. Bh4 {[%emt 0:0:0]
} Be7 {[%emt 0:0:5]} 7. Bg3 {[%emt 0:0:8]} d6 {[%emt 0:0:1]
} 8. a4 {[%emt 0:0:17]} Be6 {[%emt 0:0:7]} 9. Bxe6 {[%emt 0:0:21]} fxe6 {[%emt 0:0:1]
} 10. Nbd2 {[%emt 0:0:10]} 0-0 {[%emt 0:0:5]} 11. c3 {[%emt 0:0:0]} a5 {[%emt 0:2:22]} 12. Qb3 {[%emt 0:0:30]} Qd7 {[%emt 0:0:2]} 13. 0-0 {[%emt 0:0:17]} Nh5 {[%emt 0:0:13]} 14. Rfe1 {[%emt 0:0:20]} b6 {[%emt 0:0:30]
} 15. Qb5 {[%emt 0:0:39]} Nb8 {[%emt 0:1:45]} 16. d4 {[%emt 0:0:0]} Qxb5 {[%emt 0:0:45]} 17. axb5 {[%emt 0:0:1]} exd4 {[%emt 0:0:20]} 18. cxd4 {[%emt 0:2:24]} c6 {[%emt 0:0:13]} 19. d5 {[%emt 0:1:30]} cxd5 {[%emt 0:2:12]
} 20. exd5 {[%emt 0:0:1]} e5 {[%emt 0:0:1]} 21. Ne4 {[%emt 0:0:0]} Nd7 {[%emt 0:0:12]} 22. Rac1 {[%emt 0:0:47]} Nc5 {[%emt 0:0:2]} 23. Rcd1 {[%emt 0:2:59]} a4 {[%emt 0:1:50]} 24. h3 {[%emt 0:1:28]} Nf4 {[%emt 0:0:0]} 25. Bxf4 {[%emt 0:0:36]} Rxf4 {[%emt 0:0:5]} 26. Nfd2 {[%emt 0:0:0]} Ra5 {[%emt 0:1:30]} 27. g3 {[%emt 0:0:20]} Rf8 {[%emt 0:0:8]} 28. Nxc5 {[%emt 0:0:29]} bxc5 {[%emt 0:0:4]} 29. b6 {[%emt 0:0:4]} Rb5 {[%emt 0:0:0]} 30. Nc4 {[%emt 0:0:1]} Rb4 {[%emt 0:0:6]} 31. Rc1 {[%emt 0:0:2]} Rf3 {[%emt 0:0:35]} 32. Red1 {[%emt 0:0:4]} e4 {[%emt 0:0:18]} 33. Re1 {[%emt 0:0:19]
} Bf6 {[%emt 0:1:6]} 34. Rc2 {[%emt 0:0:39]} Rfb3 {[%emt 0:0:0]} 35. Rxe4 {[%emt 0:0:24]} Bxb2 {[%emt 0:0:13]} 36. Rxb2 {[%emt 0:0:44]} Rxb2 {[%emt 0:0:6]} 37. Re8+ {[%emt 0:0:6]} Kf7 {[%emt 0:2:0]} 38. Nxd6+ {[%emt 0:0:2]} Kg6 {[%emt 0:0:1]} 39. Ra8 {[%emt 0:1:24]} Rxb6 {[%emt 0:0:0]} 40. Nc4 {[%emt 0:0:4]} Rb1+ {[%emt 0:0:3]} 41. Kg2 {[%emt 0:0:1]} R6b4 {[%emt 0:0:3]} 42. Ne5+ {[%emt 0:0:4]} Kf5 {[%emt 0:0:42]} 43. Nc6 {[%emt 0:0:8]
} Rc4 {[%emt 0:1:11]} 44. Rf8+ {[%emt 0:0:2]} Ke4 {[%emt 0:0:0]} 45. d6 {[%emt 0:0:55]} Rd1 {[%emt 0:0:3]} 46. Rf4+ {[%emt 0:0:33]} Kd5 {[%emt 0:0:1]} 47. Ne7+ {[%emt 0:0:8]} Kxd6 {[%emt 0:0:4]} 48. Nf5+ {[%emt 0:0:11]
} Ke5 {[%emt 0:0:2]} 49. Rxc4 {[%emt 0:0:6]} Kxf5 {[%emt 0:0:0]} 50. Rxc5+ {[%emt 0:0:5]} Ke6 {[%emt 0:0:2]} 51. Ra5 {[%emt 0:0:4]
} Rd4 {[%emt 0:0:33]} 52. h4 {[%emt 0:0:19] Ke5} 1/2-1/2

[Event "FIDE World Rapid-ch Open 2018"]
[White "Goganov, Aleksey"]
[Black "Najer, Evgeniy"]
[Site "St. Petersburg"]
[Round "3.46"]
[Annotator "ChessBase"]
[Result "1/2-1/2"]
[Date "2018.12.26"]
[WhiteElo "2612"]
[BlackElo "2670"]
[PlyCount "95"]
[TimeControl "900+10"]

1. d4 {[%emt 0:0:0]} Nf6 {[%emt 0:0:0]} 2. c4 {[%emt 0:0:0]} e6 {[%emt 0:0:0]} 3. Nf3 {[%emt 0:0:0]} Bb4+ {[%emt 0:0:0]} 4. Bd2 {[%emt 0:0:0]} c5 {[%emt 0:0:0]} 5. Bxb4 {[%emt 0:0:6]} cxb4 {[%emt 0:0:0]} 6. g3 {[%emt 0:0:2]
} b6 {[%emt 0:0:0]} 7. Bg2 {[%emt 0:0:2]} Bb7 {[%emt 0:0:0]
} 8. 0-0 {[%emt 0:0:3]} a5 {[%emt 0:0:0]} 9. Qd3 {[%emt 0:0:2]} 0-0 {[%emt 0:0:7]
} 10. Nbd2 {[%emt 0:0:4]} d6 {[%emt 0:0:8]} 11. e4 {[%emt 0:0:0]} e5 {[%emt 0:0:4]} 12. Rfe1 {[%emt 0:0:6]} Nc6 {[%emt 0:0:29]} 13. Nf1 {[%emt 0:1:17]} Re8 {[%emt 0:1:31]} 14. Rad1 {[%emt 0:0:46]} Rb8 {[%emt 0:4:5]
} 15. Ne3 {[%emt 0:2:49]} exd4 {[%emt 0:0:11]} 16. Nxd4 {[%emt 0:0:17]
} Nxd4 {[%emt 0:0:3]} 17. Qxd4 {[%emt 0:0:1]} Bxe4 {[%emt 0:0:0]} 18. Qxd6 {[%emt 0:0:27]} Bxg2 {[%emt 0:0:6]} 19. Kxg2 {[%emt 0:0:0]} Qxd6 {[%emt 0:3:44]} 20. Rxd6 {[%emt 0:0:2]} Kf8 {[%emt 0:1:10]} 21. Red1 {[%emt 0:2:6]} Rec8 {[%emt 0:0:29]} 22. f3 {[%emt 0:0:19]} b5 {[%emt 0:0:11]
} 23. cxb5 {[%emt 0:0:33]} Rxb5 {[%emt 0:0:7]} 24. g4 {[%emt 0:0:5]
} b3 {[%emt 0:1:54]} 25. a3 {[%emt 0:0:18]} h5 {[%emt 0:0:27]} 26. h3 {[%emt 0:0:8]} Re8 {[%emt 0:1:8]} 27. Kf2 {[%emt 0:0:34]} Kg8 {[%emt 0:0:51]
} 28. Rd8 {[%emt 0:0:51]} Rxd8 {[%emt 0:0:9]} 29. Rxd8+ {[%emt 0:0:2]
} Kh7 {[%emt 0:0:1]} 30. Ke2 {[%emt 0:0:25]} hxg4 {[%emt 0:0:0]} 31. hxg4 {[%emt 0:0:4]} Rb7 {[%emt 0:0:11]} 32. Ra8 {[%emt 0:0:57]} Rb5 {[%emt 0:0:0]} 33. a4 {[%emt 0:1:0]} Re5 {[%emt 0:1:4]} 34. Kd3 {[%emt 0:0:31]
} Nd7 {[%emt 0:0:24]} 35. Ra7 {[%emt 0:0:48]} Nc5+ {[%emt 0:0:0]} 36. Kd4 {[%emt 0:0:10]} f6 {[%emt 0:0:1]} 37. Nc4 {[%emt 0:0:37]} Ne6+ {[%emt 0:0:4]} 38. Kc3 {[%emt 0:0:6]} Re2 {[%emt 0:0:4]} 39. Nxa5 {[%emt 0:3:10]
} Re3+ {[%emt 0:0:2]} 40. Kc4 {[%emt 0:0:4]} Rxf3 {[%emt 0:0:0]} 41. Nxb3 {[%emt 0:0:9]} Rf4+ {[%emt 0:0:1]} 42. Kd5 {[%emt 0:0:3]
} Rb4 {[%emt 0:0:1]} 43. Kxe6 {[%emt 0:0:43]} Rxb3 {[%emt 0:0:2]} 44. Rc7 {[%emt 0:0:23]} Rxb2 {[%emt 0:0:12]} 45. Rc4 {[%emt 0:0:2]} Kg6 {[%emt 0:0:0]} 46. Kd6 {[%emt 0:0:9]} Ra2 {[%emt 0:0:8]} 47. Kc6 {[%emt 0:0:6]} f5 {[%emt 0:0:27]} 48. gxf5+ 1/2-1/2

[Event "FIDE World Rapid-ch Open 2018"]
[White "Esipenko, Andrey"]
[Black "Geller, Jakov"]
[Site "St. Petersburg"]
[Round "3.47"]
[Annotator "ChessBase"]
[Result "1/2-1/2"]
[Date "2018.12.26"]
[WhiteElo "2593"]
[BlackElo "2518"]
[PlyCount "163"]
[TimeControl "900+10"]

1. d4 {[%emt 0:0:0]} d5 {[%emt 0:0:0]} 2. Nf3 {[%emt 0:0:0]} Nf6 {[%emt 0:0:0]
} 3. c4 {[%emt 0:0:0]} e6 {[%emt 0:0:0]} 4. Nc3 {[%emt 0:0:0]} Nbd7 {[%emt 0:0:3]} 5. Bf4 {[%emt 0:0:4]} dxc4 {[%emt 0:0:11]} 6. e3 {[%emt 0:0:3]} Nd5 {[%emt 0:2:13]} 7. Bxc4 {[%emt 0:0:3]} Nxf4 {[%emt 0:0:0]} 8. exf4 {[%emt 0:0:2]} Bd6 {[%emt 0:0:18]} 9. g3 {[%emt 0:0:6]} Nb6 {[%emt 0:0:12]} 10. Bd3 {[%emt 0:0:9]} Bd7 {[%emt 0:0:8]} 11. Be4 {[%emt 0:0:4]
} c6 {[%emt 0:0:24]} 12. 0-0 {[%emt 0:0:50]} Nd5 {[%emt 0:0:0]} 13. Qe2 {[%emt 0:2:32]} 0-0 {[%emt 0:0:46]} 14. Rad1 {[%emt 0:0:58]} g6 {[%emt 0:0:34]} 15. Bd3 {[%emt 0:0:27]} Nxc3 {[%emt 0:0:36]} 16. bxc3 {[%emt 0:0:3]
} Qc7 {[%emt 0:0:46]} 17. h4 {[%emt 0:3:21]} Rad8 {[%emt 0:0:0]} 18. Be4 {[%emt 0:1:22]} Qa5 {[%emt 0:1:22]} 19. Qe3 {[%emt 0:0:41]} c5 {[%emt 0:2:7]} 20. Kg2 {[%emt 0:3:11]} cxd4 {[%emt 0:0:26]} 21. cxd4 {[%emt 0:0:5]
} Bc6 {[%emt 0:0:55]} 22. Bxc6 {[%emt 0:1:46]} bxc6 {[%emt 0:0:0]} 23. Qe2 {[%emt 0:0:22]} Rb8 {[%emt 0:0:31]} 24. Rc1 {[%emt 0:0:14]} Rb6 {[%emt 0:0:34]} 25. Rc2 {[%emt 0:1:45]} Rfb8 {[%emt 0:0:38]} 26. Rd1 {[%emt 0:0:20]
} Qd5 {[%emt 0:0:43]} 27. Qc4 {[%emt 0:0:4]} a5 {[%emt 0:0:0]} 28. Rd3 {[%emt 0:0:17]} Kg7 {[%emt 0:0:56]} 29. Re3 {[%emt 0:0:1]} Be7 {[%emt 0:0:42]} 30. Ree2 {[%emt 0:0:6]} Bf6 {[%emt 0:0:9]} 31. Qa4 {[%emt 0:0:17]
} Rb5 {[%emt 0:0:14]} 32. Qc4 {[%emt 0:0:18]} R8b6 {[%emt 0:0:0]} 33. Qxd5 {[%emt 0:0:37]} cxd5 {[%emt 0:0:29]} 34. g4 {[%emt 0:0:8]} Rb4 {[%emt 0:0:22]} 35. Rc7 {[%emt 0:0:1]} h6 {[%emt 0:0:30]} 36. Rd2 {[%emt 0:0:21]
} Rb7 {[%emt 0:0:9]} 37. Rc5 {[%emt 0:0:10]} Ra4 {[%emt 0:0:0]} 38. f5 {[%emt 0:0:12]} gxf5 {[%emt 0:0:37]} 39. gxf5 {[%emt 0:0:1]} Be7 {[%emt 0:0:10]} 40. Rc6 {[%emt 0:0:1]} exf5 {[%emt 0:0:4]} 41. Re2 {[%emt 0:0:5]
} Bf6 {[%emt 0:0:6]} 42. Rd6 {[%emt 0:0:13]} Bxd4 {[%emt 0:0:0]} 43. Rxd5 {[%emt 0:0:4]} Bf6 {[%emt 0:0:4]} 44. Rxf5 {[%emt 0:0:4]} Rb2 {[%emt 0:0:23]} 45. Rxb2 {[%emt 0:0:37]} Bxb2 {[%emt 0:0:2]} 46. Rc5 {[%emt 0:0:16]
} Rxa2 {[%emt 0:0:11]} 47. Rc2 {[%emt 0:0:1]} a4 {[%emt 0:0:0]} 48. Nd2 {[%emt 0:0:8]} a3 {[%emt 0:0:3]} 49. Nc4 {[%emt 0:0:22]} Ra1 {[%emt 0:0:3]} 50. Nxb2 {[%emt 0:0:2]} Ra2 {[%emt 0:0:2]} 51. Rc3 {[%emt 0:0:6]
} axb2 {[%emt 0:0:4]} 52. Rb3 {[%emt 0:0:1]} Kf6 {[%emt 0:0:0]} 53. Rb5 {[%emt 0:0:15]} Ke6 {[%emt 0:0:5]} 54. Kf3 {[%emt 0:0:1]} Kd6 {[%emt 0:0:22]} 55. Ke4 {[%emt 0:0:3]} Kc6 {[%emt 0:0:26]} 56. Rb8 {[%emt 0:0:1]
} Kc5 {[%emt 0:0:9]} 57. Kd3 {[%emt 0:0:3]} f5 {[%emt 0:0:0]} 58. h5 {[%emt 0:0:20]} f4 {[%emt 0:0:9]} 59. Rc8+ {[%emt 0:0:17]} Kd5 {[%emt 0:0:2]} 60. Rb8 {[%emt 0:0:2]} Ra3+ {[%emt 0:0:17]} 61. Ke2 {[%emt 0:0:6]
} f3+ {[%emt 0:0:10]} 62. Kd2 {[%emt 0:0:4]} Ra2 {[%emt 0:0:0]} 63. Kd3 {[%emt 0:0:4]} Ke5 {[%emt 0:0:2]} 64. Ke3 {[%emt 0:0:5]} Kd5 {[%emt 0:0:21]} 65. Kd3 {[%emt 0:0:1]} Kd6 {[%emt 0:0:5]} 66. Ke3 {[%emt 0:0:19]
} Kd5 {[%emt 0:0:14]} 67. Kd3 {[%emt 0:0:5]} Ra3+ {[%emt 0:0:0]} 68. Kd2 {[%emt 0:0:2]} Ke4 {[%emt 0:0:15]} 69. Rxb2 {[%emt 0:0:21]} Rd3+ {[%emt 0:0:2]} 70. Ke1 {[%emt 0:0:39]} Rd5 {[%emt 0:0:7]} 71. Rb6 {[%emt 0:0:19]
} Rxh5 72. Rb4+ Kf5 {[%emt 0:0:8]} 73. Kd2 {[%emt 0:0:2]} Kg6 {[%emt 0:0:7]} 74. Rb6+ {[%emt 0:0:6]} Kg5 {[%emt 0:0:13]} 75. Ke3 {[%emt 0:0:5]
} Kg4 {[%emt 0:0:5]} 76. Rb4+ {[%emt 0:0:17]} Kh3 {[%emt 0:0:0]} 77. Kxf3 {[%emt 0:0:5]} Rf5+ {[%emt 0:0:3]} 78. Rf4 {[%emt 0:0:19]} Rxf4+ {[%emt 0:0:14]} 79. Kxf4 {[%emt 0:0:1]} Kg2 {[%emt 0:0:3]} 80. Kg4 {[%emt 0:0:1]
} Kxf2 {[%emt 0:0:2]} 81. Kh5 {[%emt 0:0:1]} Kg3 {[%emt 0:0:0]} 82. Kxh6 1/2-1/2

[Event "FIDE World Rapid-ch Open 2018"]
[White "Baron, Tal"]
[Black "Mchedlishvili, Mikheil"]
[Site "St. Petersburg"]
[Round "3.48"]
[Annotator "ChessBase"]
[Result "0-1"]
[Date "2018.12.26"]
[WhiteElo "2532"]
[BlackElo "2610"]
[PlyCount "60"]
[TimeControl "900+10"]

1. d4 {[%emt 0:0:0]} d6 {[%emt 0:0:0]} 2. e4 {[%emt 0:0:0]} Nf6 {[%emt 0:0:0]} 3. Nc3 {[%emt 0:0:0]} g6 {[%emt 0:0:2]} 4. f4 {[%emt 0:0:0]} Bg7 {[%emt 0:0:8]} 5. Bd3 {[%emt 0:0:0]} Nc6 {[%emt 0:1:27]} 6. d5 {[%emt 0:0:0]} Nb4 {[%emt 0:0:14]} 7. Bc4 {[%emt 0:0:18]} 0-0 {[%emt 0:0:46]} 8. a3 {[%emt 0:3:12]} Na6 {[%emt 0:0:3]} 9. Nf3 {[%emt 0:1:9]} Nc5 {[%emt 0:0:0]} 10. e5 {[%emt 0:0:35]} Nfd7 {[%emt 0:0:10]} 11. Be3 {[%emt 0:1:35]} Nb6 {[%emt 0:2:58]} 12. Ba2 {[%emt 0:0:11]} Nba4 {[%emt 0:0:25]} 13. Nxa4 {[%emt 0:1:15]
} Nxa4 {[%emt 0:0:2]} 14. 0-0 {[%emt 0:1:21]} c6 {[%emt 0:0:0]} 15. c3 {[%emt 0:1:0]} Nb6 {[%emt 0:0:21]} 16. c4 {[%emt 0:1:44]} cxd5 {[%emt 0:0:33]} 17. cxd5 {[%emt 0:0:4]} Bg4 {[%emt 0:0:19]} 18. Qd4 {[%emt 0:0:29]
} Nd7 {[%emt 0:0:33]} 19. Qb4 {[%emt 0:1:52]} Bxf3 {[%emt 0:0:0]} 20. Rxf3 {[%emt 0:0:1]} dxe5 {[%emt 0:0:3]} 21. f5 {[%emt 0:0:1]} Nf6 {[%emt 0:1:31]} 22. fxg6 {[%emt 0:0:39]} hxg6 {[%emt 0:0:3]} 23. Qh4 {[%emt 0:0:37]
} Qd7 {[%emt 0:0:27]} 24. Bg5 {[%emt 0:0:20]} Rfc8 {[%emt 0:0:0]} 25. Raf1 {[%emt 0:1:9]} Rc2 {[%emt 0:0:9]} 26. Bh6 {[%emt 0:0:38]} Bxh6 {[%emt 0:0:47]} 27. Qxh6 {[%emt 0:0:3]} Qg4 {[%emt 0:0:2]} 28. Rg3 {[%emt 0:0:19]
} Qd4+ {[%emt 0:0:24]} 29. Kh1 {[%emt 0:0:2]} Ng4 {[%emt 0:0:0]} 30. Rxg4 {[%emt 0:0:16]} Qxg4 {[%emt 0:0:2]} 0-1

[Event "FIDE World Rapid-ch Open 2018"]
[White "Zhigalko, Andrey"]
[Black "Ragger, Markus"]
[Site "St. Petersburg"]
[Round "3.49"]
[Annotator "ChessBase"]
[Result "1/2-1/2"]
[Date "2018.12.26"]
[WhiteElo "2545"]
[BlackElo "2687"]
[PlyCount "54"]
[TimeControl "900+10"]

1. e4 {[%emt 0:0:0]} e5 {[%emt 0:0:0]} 2. Nf3 {[%emt 0:0:0]} Nc6 {[%emt 0:0:0]
} 3. Bb5 {[%emt 0:0:0]} Nf6 {[%emt 0:0:0]} 4. d3 {[%emt 0:0:0]} Bc5 {[%emt 0:0:0]} 5. 0-0 {[%emt 0:0:3]} Nd4 {[%emt 0:0:2]} 6. Nxd4 {[%emt 0:0:3]} Bxd4 {[%emt 0:0:2]} 7. Nd2 {[%emt 0:0:5]} 0-0 {[%emt 0:0:0]} 8. c3 {[%emt 0:1:47]} Bb6 {[%emt 0:0:1]} 9. Nc4 {[%emt 0:1:39]} d5 {[%emt 0:0:2]
} 10. exd5 {[%emt 0:0:53]} Qxd5 {[%emt 0:0:18]} 11. Nxb6 {[%emt 0:0:16]
} axb6 {[%emt 0:0:1]} 12. Bc4 {[%emt 0:0:5]} Qd6 {[%emt 0:0:0]} 13. Bg5 {[%emt 0:1:14]} Bg4 {[%emt 0:3:42]} 14. Qe1 {[%emt 0:1:8]} Rfe8 {[%emt 0:1:37]} 15. Bxf6 {[%emt 0:1:14]} Qxf6 {[%emt 0:0:22]} 16. Qe4 {[%emt 0:0:5]
} Qg6 {[%emt 0:2:5]} 17. Rfe1 {[%emt 0:5:10]} Qxe4 {[%emt 0:0:0]} 18. dxe4 {[%emt 0:0:44]} Rad8 {[%emt 0:1:31]} 19. f3 {[%emt 0:0:21]} Be6 {[%emt 0:0:2]} 20. Bxe6 {[%emt 0:0:5]} Rxe6 {[%emt 0:0:1]} 21. Rad1 {[%emt 0:0:3]
} Red6 {[%emt 0:0:2]} 22. Rxd6 {[%emt 0:0:3]} Rxd6 {[%emt 0:0:0]} 23. Kf2 {[%emt 0:0:3]} Rd2+ {[%emt 0:1:13]} 24. Re2 {[%emt 0:0:3]} Rd1 {[%emt 0:0:1]} 25. Re1 {[%emt 0:0:8]} Rd2+ {[%emt 0:0:4]} 26. Re2 {[%emt 0:0:1]
} Rd1 {[%emt 0:0:1]} 27. Re1 {[%emt 0:0:3]} Rd2+ {[%emt 0:0:0]} 1/2-1/2

[Event "FIDE World Rapid-ch Open 2018"]
[White "Vitiugov, Nikita"]
[Black "Anisimov, Pavel"]
[Site "St. Petersburg"]
[Round "3.50"]
[Annotator "ChessBase"]
[Result "1-0"]
[Date "2018.12.26"]
[WhiteElo "2719"]
[BlackElo "2533"]
[PlyCount "90"]
[TimeControl "900+10"]

1. e4 {[%emt 0:0:0]} e6 {[%emt 0:0:10]} 2. d4 {[%emt 0:0:0]} d5 {[%emt 0:0:0]} 3. e5 {[%emt 0:0:5]} c5 {[%emt 0:0:22]} 4. c3 {[%emt 0:0:1]} Qb6 {[%emt 0:0:3]
} 5. Nf3 {[%emt 0:0:9]} Nc6 {[%emt 0:0:13]} 6. a3 {[%emt 0:0:0]} Bd7 {[%emt 0:0:23]} 7. b4 {[%emt 0:0:21]} cxd4 {[%emt 0:0:8]} 8. cxd4 {[%emt 0:0:2]} Nh6 {[%emt 0:0:59]} 9. Nc3 {[%emt 0:0:32]} Rc8 {[%emt 0:0:0]} 10. Na4 {[%emt 0:0:35]} Qd8 {[%emt 0:0:17]} 11. Bd3 {[%emt 0:1:25]} Nf5 {[%emt 0:0:27]} 12. Bb2 {[%emt 0:0:8]} Be7 {[%emt 0:1:14]} 13. Nc5 {[%emt 0:0:25]
} Rc7 {[%emt 0:3:24]} 14. Rc1 {[%emt 0:0:24]} 0-0 {[%emt 0:0:0]} 15. 0-0 {[%emt 0:0:34]} Bc8 {[%emt 0:1:9]} 16. Qb3 {[%emt 0:2:21]} Nb8 {[%emt 0:0:53]} 17. Rc2 {[%emt 0:0:37]} b6 {[%emt 0:0:34]} 18. Na4 {[%emt 0:0:0]} Bd7 {[%emt 0:1:23]} 19. b5 {[%emt 0:0:31]} Rxc2 {[%emt 0:0:26]} 20. Qxc2 {[%emt 0:0:2]} Qc8 {[%emt 0:0:8]} 21. Nc3 {[%emt 0:0:22]} h5 {[%emt 0:1:27]
} 22. Rc1 {[%emt 0:0:45]} Qb7 {[%emt 0:0:11]} 23. Qd2 {[%emt 0:0:0]} a6 {[%emt 0:0:27]} 24. bxa6 {[%emt 0:1:18]} Nxa6 {[%emt 0:0:6]} 25. Ne2 {[%emt 0:0:3]} Rc8 {[%emt 0:0:20]} 26. Rb1 {[%emt 0:0:16]} Nc7 {[%emt 0:0:32]
} 27. Nf4 {[%emt 0:0:13]} g6 {[%emt 0:1:3]} 28. g3 {[%emt 0:0:0]} Bb5 {[%emt 0:0:39]} 29. Bc2 {[%emt 0:0:34]} Qa6 {[%emt 0:0:17]} 30. Kg2 {[%emt 0:1:1]} Ba4 {[%emt 0:0:16]} 31. Bxf5 {[%emt 0:1:43]} exf5 {[%emt 0:0:1]
} 32. e6 {[%emt 0:0:2]} Nxe6 {[%emt 0:0:19]} 33. Nxd5 {[%emt 0:0:7]
} Bd8 {[%emt 0:0:11]} 34. Nb4 {[%emt 0:0:31]} Qb7 {[%emt 0:0:0]} 35. d5 {[%emt 0:0:5]} Nf8 {[%emt 0:0:20]} 36. Re1 {[%emt 0:0:20]} f6 {[%emt 0:0:11]
} 37. Qe3 {[%emt 0:1:55]} Qd7 {[%emt 0:0:14]} 38. Nd4 {[%emt 0:0:0]} Qf7 {[%emt 0:0:32]} 39. Ndc6 {[%emt 0:0:27]} Bxc6 {[%emt 0:0:11]} 40. dxc6 {[%emt 0:0:2]} b5 {[%emt 0:0:12]} 41. Qc5 {[%emt 0:0:27]} Qc4 {[%emt 0:0:8]
} 42. Qd6 {[%emt 0:0:35]} Qf7 {[%emt 0:0:5]} 43. Nd5 {[%emt 0:0:0]} Kg7 {[%emt 0:0:14]} 44. Nxf6 {[%emt 0:0:38]} Bxf6 {[%emt 0:0:2]} 45. Bxf6+ {[%emt 0:0:1]} Kh6 {[%emt 0:0:36]} 1-0

[Event "FIDE World Rapid-ch Open 2018"]
[White "Nozdrachev, Vladislav"]
[Black "Adly, Ahmed"]
[Site "St. Petersburg"]
[Round "3.51"]
[Annotator "ChessBase"]
[Result "0-1"]
[Date "2018.12.26"]
[WhiteElo "2486"]
[BlackElo "2626"]
[PlyCount "97"]
[TimeControl "900+10"]

1. e4 {[%emt 0:0:0]} c5 {[%emt 0:0:0]} 2. Nf3 {[%emt 0:0:0]} d6 {[%emt 0:0:0]} 3. d4 {[%emt 0:0:0]} cxd4 {[%emt 0:0:0]} 4. Nxd4 {[%emt 0:0:2]} Nf6 {[%emt 0:0:0]} 5. Nc3 {[%emt 0:0:1]} a6 {[%emt 0:0:0]} 6. h3 {[%emt 0:0:9]
} e5 {[%emt 0:0:4]} 7. Nb3 {[%emt 0:0:8]} h5 {[%emt 0:0:11]} 8. f4 {[%emt 0:0:7]} Nc6 {[%emt 0:0:19]} 9. Be3 {[%emt 0:0:38]} exf4 {[%emt 0:0:19]
} 10. Bxf4 {[%emt 0:0:2]} Be6 {[%emt 0:0:2]} 11. Qd2 {[%emt 0:0:25]
} d5 {[%emt 0:0:3]} 12. exd5 {[%emt 0:0:41]} Nxd5 {[%emt 0:0:0]} 13. Nxd5 {[%emt 0:0:2]} Qxd5 {[%emt 0:0:3]} 14. Qxd5 {[%emt 0:0:9]} Bxd5 {[%emt 0:0:2]} 15. 0-0-0 {[%emt 0:0:2]} 0-0-0 {[%emt 0:0:4]} 16. Rd2 {[%emt 0:2:3]} Be7 {[%emt 0:0:38]} 17. Bd3 {[%emt 0:0:11]} Be6 {[%emt 0:0:0]} 18. Re1 {[%emt 0:0:50]} g5 {[%emt 0:0:35]} 19. Bg3 {[%emt 0:0:46]} h4 {[%emt 0:0:28]
} 20. Bf2 Bb4 {[%emt 0:1:27]} 21. c3 {[%emt 0:0:15]} Bd6 {[%emt 0:0:1]
} 22. Kc2 {[%emt 0:1:30]} Ne5 {[%emt 0:0:50]} 23. Be4 {[%emt 0:0:0]} Nc4 {[%emt 0:1:21]} 24. Rdd1 {[%emt 0:0:2]} Kb8 {[%emt 0:0:29]} 25. Nd4 {[%emt 0:0:57]} Bc8 {[%emt 0:0:11]} 26. Nf3 {[%emt 0:0:54]} Bf4 {[%emt 0:0:24]
} 27. Bd3 {[%emt 0:1:29]} Rxd3 {[%emt 0:0:19]} 28. Rxd3 {[%emt 0:0:14]
} Bf5 {[%emt 0:0:2]} 29. Bd4 {[%emt 0:0:20]} Rd8 {[%emt 0:0:0]} 30. b3 {[%emt 0:0:26]} b5 {[%emt 0:0:41]} 31. Re7 {[%emt 0:0:40]} Na3+ {[%emt 0:0:26]} 32. Kb2 {[%emt 0:0:10]} Bxd3 {[%emt 0:0:1]} 33. Ne5 {[%emt 0:1:49]
} Be4 {[%emt 0:1:1]} 34. Nxf7 {[%emt 0:0:37]} Rxd4 {[%emt 0:0:0]} 35. cxd4 {[%emt 0:0:3]} Bxg2 {[%emt 0:0:2]} 36. Kxa3 {[%emt 0:0:0]} g4 {[%emt 0:0:17]} 37. hxg4 {[%emt 0:0:58]} h3 {[%emt 0:0:1]} 38. Re8+ {[%emt 0:1:15]} Kc7 {[%emt 0:0:2]} 39. Re7+ {[%emt 0:0:12]} Kc8 {[%emt 0:0:0]} 40. Re8+ {[%emt 0:1:13]} Kd7 {[%emt 0:0:7]} 41. Rh8 {[%emt 0:0:1]} h2 {[%emt 0:0:12]} 42. Ne5+ {[%emt 0:0:6]} Kc7 {[%emt 0:2:5]} 43. Rh7+ {[%emt 0:0:24]
} Kb6 {[%emt 0:0:1]} 44. Nd7+ {[%emt 0:0:24]} Kc6 {[%emt 0:0:0]} 45. Ne5+ {[%emt 0:0:38]} Kd5 {[%emt 0:0:20]} 46. g5 {[%emt 0:1:2]} Kxd4 {[%emt 0:2:36]} 47. g6 {[%emt 0:0:10]} Bxe5 {[%emt 0:0:6]} 48. g7 {[%emt 0:0:14]
} Kc3 {[%emt 0:0:5]} 49. Rh4 {[%emt 0:0:22]} 0-1

[Event "FIDE World Rapid-ch Open 2018"]
[White "Petrov, Nikita"]
[Black "Amin, Bassem"]
[Site "St. Petersburg"]
[Round "3.52"]
[Annotator "ChessBase"]
[Result "1/2-1/2"]
[Date "2018.12.26"]
[WhiteElo "2593"]
[BlackElo "2710"]
[PlyCount "133"]
[TimeControl "900+10"]

1. e4 {[%emt 0:0:0]} e5 {[%emt 0:0:0]} 2. Bc4 {[%emt 0:0:0]} Nc6 {[%emt 0:0:0]
} 3. Nf3 {[%emt 0:0:0]} Nf6 {[%emt 0:0:0]} 4. d3 {[%emt 0:0:0]} h6 {[%emt 0:0:3]} 5. 0-0 {[%emt 0:0:25]} d6 {[%emt 0:0:2]} 6. c3 {[%emt 0:0:53]
} g6 {[%emt 0:0:2]} 7. Re1 {[%emt 0:0:8]} Bg7 {[%emt 0:0:2]
} 8. Nbd2 {[%emt 0:0:3]} 0-0 {[%emt 0:0:3]} 9. Nf1 {[%emt 0:0:2]} Na5 {[%emt 0:0:17]
} 10. Bb5 {[%emt 0:0:11]} a6 {[%emt 0:0:1]} 11. Ba4 {[%emt 0:0:0]} b5 {[%emt 0:0:7]} 12. Bc2 {[%emt 0:0:2]} c5 {[%emt 0:0:2]} 13. d4 {[%emt 0:0:56]} exd4 {[%emt 0:0:26]} 14. cxd4 {[%emt 0:0:7]} Bg4 {[%emt 0:0:0]} 15. d5 {[%emt 0:1:2]} Re8 {[%emt 0:0:22]} 16. Ng3 {[%emt 0:3:53]} Nc4 {[%emt 0:0:25]} 17. h3 {[%emt 0:1:38]} Bxf3 {[%emt 0:0:3]} 18. gxf3 {[%emt 0:0:1]
} h5 {[%emt 0:0:45]} 19. f4 {[%emt 0:0:21]} h4 {[%emt 0:0:17]} 20. Nf1 {[%emt 0:0:2]} Nh5 {[%emt 0:0:22]} 21. Rb1 {[%emt 0:0:8]} Bh6 {[%emt 0:0:59]
} 22. b3 {[%emt 0:0:18]} Nb6 {[%emt 0:0:9]} 23. Qg4 {[%emt 0:0:0]} Nxd5 {[%emt 0:0:25]} 24. f5 {[%emt 0:0:24]} Bxc1 {[%emt 0:1:46]} 25. Rbxc1 {[%emt 0:0:2]} Ndf4 {[%emt 0:0:26]} 26. e5 {[%emt 0:0:16]} Rxe5 {[%emt 0:1:2]
} 27. Rxe5 {[%emt 0:0:43]} dxe5 {[%emt 0:0:1]} 28. fxg6 {[%emt 0:1:11]
} Qg5 {[%emt 0:4:7]} 29. Kh2 {[%emt 0:0:1]} Qxg4 {[%emt 0:0:0]} 30. hxg4 {[%emt 0:0:2]} Nf6 {[%emt 0:0:2]} 31. gxf7+ {[%emt 0:0:1]} Kxf7 {[%emt 0:0:1]} 32. Bf5 {[%emt 0:0:2]} Ne6 {[%emt 0:1:46]} 33. Ne3 {[%emt 0:0:21]
} Rd8 {[%emt 0:1:14]} 34. Bxe6+ {[%emt 0:0:26]} Kxe6 {[%emt 0:0:0]} 35. Rxc5 {[%emt 0:0:1]} Rd2 {[%emt 0:0:2]} 36. Rc6+ {[%emt 0:0:14]
} Kf7 {[%emt 0:0:14]} 37. g5 {[%emt 0:0:22]} Rxf2+ {[%emt 0:0:30]} 38. Kg1 {[%emt 0:0:25]
} Ne4 {[%emt 0:0:15]} 39. Ng4 {[%emt 0:0:48]} Rxa2 {[%emt 0:0:0]} 40. Nxe5+ {[%emt 0:1:58]} Ke7 {[%emt 0:0:7]} 41. Ng6+ {[%emt 0:1:7]} Kd7 {[%emt 0:0:11]} 42. Ne5+ {[%emt 0:0:5]} Kd8 {[%emt 0:0:15]} 43. Rh6 {[%emt 0:0:10]
} Nxg5 {[%emt 0:0:31]} 44. Rxh4 {[%emt 0:0:2]} Re2 {[%emt 0:0:0]} 45. Nd3 {[%emt 0:0:58]} Rd2 {[%emt 0:1:57]} 46. Rh8+ {[%emt 0:0:7]} Kc7 {[%emt 0:0:4]} 47. Nc5 {[%emt 0:0:2]} a5 {[%emt 0:0:18]} 48. Rh6 {[%emt 0:0:38]
} Rc2 {[%emt 0:0:15]} 49. Na6+ {[%emt 0:0:21]} Kb7 {[%emt 0:0:0]} 50. b4 {[%emt 0:0:1]} a4 {[%emt 0:1:22]} 51. Nc5+ {[%emt 0:0:1]} Kc7 {[%emt 0:0:5]} 52. Ra6 {[%emt 0:0:40]} Nf3+ {[%emt 0:0:23]} 53. Kf1 {[%emt 0:0:2]
} Nd2+ {[%emt 0:0:17]} 54. Ke1 {[%emt 0:0:12]} Ra2 {[%emt 0:0:0]} 55. Ne6+ {[%emt 0:0:1]} Kb7 {[%emt 0:0:8]} 56. Nc5+ {[%emt 0:0:1]} Kc7 {[%emt 0:0:10]} 57. Ne6+ {[%emt 0:0:0]} Kd7 {[%emt 0:0:9]} 58. Nd4 {[%emt 0:0:24]
} Nc4 {[%emt 0:0:12]} 59. Nxb5 {[%emt 0:0:4]} a3 {[%emt 0:0:0]} 60. Nxa3 {[%emt 0:1:9]} Nxa3 {[%emt 0:0:1]} 61. Kf1 {[%emt 0:0:2]} Kc7 {[%emt 0:0:14]} 62. Kg1 {[%emt 0:0:2]} Kb7 {[%emt 0:0:2]} 63. b5 {[%emt 0:0:0]
} Kc7 {[%emt 0:0:24]} 64. Kf1 {[%emt 0:0:2]} Kb7 {[%emt 0:0:0]} 65. Kg1 {[%emt 0:0:1]} Rb2 {[%emt 0:0:10]} 66. Rxa3 {[%emt 0:0:2]} Rxb5 {[%emt 0:0:1]} 67. Kf2 1/2-1/2